[Event "44th Chess Olympiad Open 2022"]
[Site "Chennai"]
[Date "2022.08.09"]
[Round "11.10"]
[White "Lagarde, Maxime"]
[Black "Ioannidis, Evgenios"]
[Result "1/2-1/2"]
[ECO "C78"]
[WhiteElo "2631"]
[BlackElo "2459"]
[Annotator "TA"]
[PlyCount "120"]
[EventDate "2022.07.29"]
[EventType "team-tourn"]
[EventCountry "IND"]
[SourceTitle "playchess.com"]
[Source "ChessBase"]
[SourceQuality "1"]
[WhiteTeam "France"]
[BlackTeam "Greece"]
[WhiteTeamCountry "FRA"]
[BlackTeamCountry "GRE"]
[TimeControl "40/5400+30:1800+30"]

{[%evp 12,120,13,19,25,0,0,0,0,-31,17,14,27,20,21,26,26,26,26,26,25,25,26,22,26,25,24,24,24,0,3,4,9,0,0,0,0,-14,0,-33,-11,-91,-92,-91,-90,-91,-85,-82,-82,-88,-82,-228,-220,-197,-8,-140,-136,-154,-159,-176,-162,-255,-235,-252,-249,-179,-87,-125,-42,-35,-8,-8,-8,-8,-8,-8,-8,-8,-8,-8,-8,-8,-8,-8,-8,-8,-8,-8,-8,-8,-8,-8,-8,-8,-8,-8,-8,-8,-8,-8,-8,-8,-8,-8,-8,-8,-8,-8,-8,-8,0]} 1. e4 {[%emt 0:00:02]} e5 {[%emt 0:00:18]} 2. Nf3 {[%emt 0:00:14]} Nc6 {[%emt 0:00:14]} 3. Bb5 {[%emt 0:00:04]} a6 {[%emt 0:00:26]} 4. Ba4 {[%emt 0:00:03]} Nf6 {[%emt 0:00:24][%cal Bg8f6,Bf6e4,Be4c3,Bc3e2,Be2f4,Bf4e6][%mdl 32]} 5. O-O {[%emt 0:00:07]} Bc5 {[%emt 0:01:17]} 6. Nxe5 {[%emt 0:10:09]} Nxe5 {[%emt 0:00:30]} 7. d4 {[%emt 0:00:03]} b5 {[%emt 0:00:33] C78: Ruy Lopez: Archangelsk and Möller Defences.} 8. dxe5 {[%emt 0:03:57]} (8. Bb3 $5 {[%cal Rd4e5]} Bxd4 9. Qxd4 $11) 8... Nxe4 {[%emt 0:00:43]} (8... bxa4 9. Bg5 $16) 9. Bb3 {[%emt 0:02:20]} Bb7 {[%emt 0:00:42]} 10. Qh5 {[%emt 0:09:21][%csl Gb3][%cal Rh5f7] Inhibits Qh4.} Qe7 {[%emt 0:04:56]} (10... O-O $15) 11. Nc3 $11 {[%emt 0:03:44] Strongly threatening Nxe4.} Nxc3 {[%emt 0:05:29] [#]} 12. Bg5 $146 {[%emt 0:13:54]} ({Predecessor:} 12. bxc3 O-O-O 13. Bf4 g5 14. Bg3 f5 15. exf6 Qe4 16. Qf3 Qxf3 17. gxf3 Rhf8 18. Rae1 Rxf6 {0-1 (37) Dzhumaev,M (2505)-Gareyev,T (2551) Tashkent 2007}) 12... g6 {[%emt 0:02:41]} 13. Bxe7 {[%emt 0:00:32][%cal Bg5e7,Be7c5,Bc5e3][%mdl 32] Dancing on a razor blade.} gxh5 {[%emt 0:00:06]} 14. Bxc5 {[%emt 0:00:06]} Ne2+ {[%emt 0:00:10]} 15. Kh1 {[%emt 0:00:06][%cal Bg1h1,Bh1g2,Bg2f2][%mdl 32]} Rg8 {[%emt 0:02:34][%csl Gg8][%cal Rb7g2]} 16. f3 {[%emt 0:00:05] Threatens to win with Be3.} Nf4 {[%emt 0:01:22]} 17. g3 {[%emt 0:00:58]} Ne6 {[%emt 0:00:40]} 18. Be3 {[%emt 0:00:39]} h4 {[%emt 0:13:55]} 19. Kg2 {[%emt 0:12:11]} h5 {[%emt 0:08:07]} 20. Kf2 {[%emt 0:10:40]} (20. Kh3 $5 {[%cal Rh3h4]}) 20... hxg3+ {[%emt 0:10:04]} 21. hxg3 {[%emt 0:00:04] Rh1 is the strong threat.} Ng5 {[%emt 0:00:08]} 22. Bxg5 {[%emt 0:11:23]} (22. Ke2 {is interesting.} Nh3 23. g4 hxg4 24. fxg4 Rxg4 25. Bxf7+ Ke7 26. Bb3) 22... Rxg5 {[%emt 0:00:08]} 23. c3 {[%emt 0:06:04]} Ke7 {[%emt 0:01:07]} 24. f4 {[%emt 0:00:47]} Rg7 {[%emt 0:01:58][%cal Oh5h4]} 25. Bd1 {[%emt 0:04:43]} Rh8 {[%emt 0:01:53]} (25... Rag8 $5 {[%cal Rg7g3]} 26. Rg1 h4 $15) 26. a4 {[%emt 0:03:55]} (26. Bf3 $11 {keeps the balance.} Bxf3 27. Kxf3) 26... h4 $17 {[%emt 0:09:40]} 27. g4 {[%emt 0:00:06]} h3 $1 {[%emt 0:00:04]} 28. axb5 {[%emt 0:01:53]} axb5 {[%emt 0:02:43]} 29. Bf3 {[%emt 0:01:16]} Bxf3 {[%emt 0:00:15]} 30. Kxf3 {[%emt 0:00:03][%mdl 4096] Endgame KRR-KRR} h2 {[%emt 0:00:38]} 31. Rae1 {[%emt 0:02:01]} (31. g5 $17) 31... Rh3+ $1 $19 {[%emt 0:04:20]} 32. Kg2 {[%emt 0:00:03]} Rd3 {[%emt 0:00:14]} (32... Rh4 $1 $19 33. g5 h1=R 34. Rxh1 Rxf4) 33. Kxh2 {[%emt 0:00:22]} (33. g5 $11 {was the only way to keep the balance.}) 33... Rxg4 $17 {[%emt 0:00:58]} 34. Rf2 {[%emt 0:00:32] [#]} Ke6 $1 {[%emt 0:04:03]} 35. f5+ {[%emt 0:00:09]} Kd5 {[%emt 0:00:38]} 36. e6 {[%emt 0:02:09]} (36. Rfe2 $142) 36... dxe6 $19 {[%emt 0:00:40]} 37. fxe6 {[%emt 0:00:04]} fxe6 {[%emt 0:00:05]} 38. Rfe2 {[%emt 0:00:40]} Rg6 {[%emt 0:10:31]} (38... c5 $19 39. Rxe6 Rg5) 39. Re5+ $17 {[%emt 0:00:09] [#]} Kd6 {[%emt 0:00:04]} (39... Kc6 $1 $17 {Hoping for ...Rd2+.} 40. R1e2 (40. Rxe6+ Rxe6 41. Rxe6+ Kd5 $17) 40... Rd6) 40. Rxb5 $15 {[%emt 0:00:31]} Rd5 {[%emt 0:00:03]} 41. Rxd5+ {[%emt 0:30:44] The position is equal.} exd5 $11 {[%emt 0:30:47] KR-KR} 42. Rg1 {[%emt 0:00:00]} Rf6 {[%emt 0:00:00]} 43. Kg2 {[%emt 0:00:00]} Kc5 {[%emt 0:00:00]} 44. Rd1 {[%emt 0:00:00]} c6 {[%emt 0:00:00]} 45. Rd4 {[%emt 0:00:00]} Rf8 {[%emt 0:00:00]} 46. Rb4 {[%emt 0:00:00]} Kd6 {[%emt 0:04:54]} 47. Rb6 {[%emt 0:00:00]} Rf6 {[%emt 0:00:00]} 48. b4 $1 {[%emt 0:00:00]} Kc7 {[%emt 0:00:00]} 49. Ra6 {[%emt 0:00:00]} Rf4 {[%emt 0:00:00]} 50. Kg3 {[%emt 0:00:13]} Rc4 {[%emt 0:00:00]} 51. Ra3 {[%emt 0:00:02]} d4 {[%emt 0:00:00]} 52. cxd4 {[%emt 0:00:06]} (52. Ra7+ Kb6 53. Ra2 dxc3 $19) 52... Rxd4 {[%emt 0:00:00]} 53. Kf3 {[%emt 0:00:26]} Kb6 {[%emt 0:00:00]} 54. Ke3 {[%emt 0:00:11]} Rh4 {[%emt 0:00:00] ( -> ...Rh3+)} 55. Ra8 {[%emt 0:00:49]} Rxb4 {[%emt 0:00:00]} 56. Kd3 {[%emt 0:00:09]} Rh4 {[%emt 0:00:00]} 57. Kc3 {[%emt 0:00:19]} Kb5 {[%emt 0:00:00]} 58. Rg8 {[%emt 0:00:35]} Rh3+ {[%emt 0:00:00]} 59. Kc2 {[%emt 0:00:05]} c5 {[%emt 0:00:00]} 60. Rg4 {[%emt 0:00:08]} c4 {[%emt 0:00:00] And White is the lucky defender.  Weighted Error Value: White=0.16 (very precise) /Black=0.12 (very precise)} 1/2-1/2

[Event "44th Chess Olympiad Open 2022"]
[Site "Chennai"]
[Date "2022.08.09"]
[Round "11.10"]
[White "Mastrovasilis, Dimitrios"]
[Black "Moussard, Jules"]
[Result "1/2-1/2"]
[ECO "B52"]
[WhiteElo "2599"]
[BlackElo "2672"]
[Annotator "TA"]
[PlyCount "149"]
[EventDate "2022.07.29"]
[EventType "team-tourn"]
[EventCountry "IND"]
[SourceTitle "playchess.com"]
[Source "ChessBase"]
[SourceQuality "1"]
[WhiteTeam "Greece"]
[BlackTeam "France"]
[WhiteTeamCountry "GRE"]
[BlackTeamCountry "FRA"]
[TimeControl "40/5400+30:1800+30"]

{[%evp 32,149,0,-61,-49,-42,-49,-48,-56,-58,-49,-51,-62,-41,-66,-71,-75,-55,0,0,0,-53,-42,-39,-14,-26,-12,-24,-20,-30,-20,-31,-31,-26,-28,-23,-31,-39,-24,-39,-49,-25,0,0,0,0,0,0,0,0,0,0,0,0,0,0,0,0,0,0,0,0,0,0,0,0,0,0,0,0,0,0,0,0,0,0,0,0,0,0,0,0,0,0,0,0,0,0,0,0,0,0,0,0,0,0,0,0,0,0,0,0,0,0,0,0,0,0,0,0,0,0,0,0,0,0,0,0,0,0]} 1. e4 {[%emt 0:00:04]} c5 {[%emt 0:00:05]} 2. Nf3 {[%emt 0:00:10]} d6 {[%emt 0:00:05]} 3. Bb5+ {[%emt 0:00:09]} Bd7 {[%emt 0:00:06]} 4. Bxd7+ {[%emt 0:00:11]} Qxd7 {[%emt 0:00:07]} 5. O-O {[%emt 0:00:15]} Nc6 {[%emt 0:05:27]} 6. c3 {[%emt 0:01:22]} d5 {[%emt 0:00:04]} 7. d3 {[%emt 0:10:00]} e6 {[%emt 0:00:34]} 8. Qe2 {[%emt 0:00:52]} Be7 {[%emt 0:08:04]} 9. Re1 {[%emt 0:03:20]} h6 {[%emt 0:07:47]} 10. Bf4 {[%emt 0:05:14]} Nf6 {[%emt 0:02:48]} 11. Nbd2 {[%emt 0:18:19]} Nh5 {[%emt 0:07:22]} 12. Be5 {[%emt 0:05:28]} O-O {[%emt 0:16:26]} 13. h3 {[%emt 0:01:51]} f5 {[%emt 0:01:32]} 14. exd5 {[%emt 0:06:19]} exd5 {[%emt 0:00:34]} 15. Bh2 {[%emt 0:01:06]} Bd6 {[%emt 0:04:46]} 16. Bxd6 {[%emt 0:07:17]} Qxd6 {[%emt 0:00:04]} 17. Ne5 {[%emt 0:01:15]} ({Better is} 17. Qe3 $11) 17... Nf4 $15 {[%emt 0:01:50]} 18. Qe3 {[%emt 0:01:56]} Qxe5 {[%emt 0:08:11]} 19. Qxe5 {[%emt 0:00:19]} Nxe5 {[%emt 0:00:04]} 20. Rxe5 {[%emt 0:00:07]} Nxd3 {[%emt 0:00:34]} 21. Rxd5 {[%emt 0:00:21]} Rad8 {[%emt 0:00:43]} 22. Rxd8 {[%emt 0:02:09]} Rxd8 {[%emt 0:00:03]} 23. Nc4 {[%emt 0:04:45]} b5 {[%emt 0:00:46]} 24. Na3 {[%emt 0:00:44]} a6 {[%emt 0:00:23]} (24... Nxb2 $15 25. Nxb5 Rd7) 25. Rd1 $11 {[%emt 0:01:51]} Kf7 {[%emt 0:02:43]} 26. Nc2 {[%emt 0:03:13]} (26. c4 $11) 26... Ke8 $15 {[%emt 0:03:59]} 27. b4 {[%emt 0:02:16]} g6 {[%emt 0:05:59]} 28. Kf1 {[%emt 0:05:34]} Ke7 {[%emt 0:06:01]} 29. g3 {[%emt 0:04:18]} Rd6 {[%emt 0:00:17]} 30. Ke2 {[%emt 0:04:14]} Nb2 {[%emt 0:00:49]} 31. Rd2 {[%emt 0:00:56]} Na4 {[%emt 0:02:45]} 32. Rxd6 $1 {[%emt 0:05:39]} Kxd6 {[%emt 0:00:08]} 33. Kd3 {[%emt 0:00:22]} Nb2+ {[%emt 0:03:44]} 34. Kd2 {[%emt 0:01:14]} cxb4 {[%emt 0:00:16]} 35. Nxb4 {[%emt 0:00:57]} a5 {[%emt 0:00:05]} 36. Nd3 {[%emt 0:00:34]} Nxd3 {[%emt 0:08:19]} 37. Kxd3 {[%emt 0:00:02]} Kd5 {[%emt 0:00:39]} 38. h4 {[%emt 0:01:32]} g5 {[%emt 0:01:16]} 39. hxg5 $1 {[%emt 0:02:09]} hxg5 {[%emt 0:00:03]} 40. Kd2 {[%emt 0:01:27]} Kc4 {[%emt 0:04:24]} 41. Kc2 $1 {[%emt 0:00:55]} a4 {[%emt 0:08:52]} 42. Kd2 {[%emt 0:05:26]} b4 {[%emt 0:04:05]} 43. cxb4 {[%emt 0:00:34]} Kxb4 {[%emt 0:00:04]} 44. Kc2 $1 {[%emt 0:00:35]} Kc4 {[%emt 0:00:06]} 45. Kd2 {[%emt 0:06:27]} Kd4 {[%emt 0:00:17]} (45... a3 $5) 46. Kc2 $1 {[%emt 0:00:29]} Ke4 {[%emt 0:02:28]} 47. Kd2 $1 {[%emt 0:00:08]} Kf3 {[%emt 0:00:51]} (47... Kd4 $5) 48. Ke1 {[%emt 0:00:03]} Kg2 {[%emt 0:00:14]} (48... a3 $5 49. Kf1 f4 50. gxf4 gxf4 $11) 49. Ke2 {[%emt 0:03:53]} Kh2 {[%emt 0:05:00]} 50. Kd2 {[%emt 0:07:08]} Kh1 {[%emt 0:02:20]} (50... Kg2 $5 51. Ke2 a3 $11) 51. Kd1 {[%emt 0:00:46]} a3 {[%emt 0:02:31]} (51... Kg1 $5 52. Ke1 Kh2 $11) 52. Kd2 $1 {[%emt 0:00:20]} Kh2 {[%emt 0:00:26]} (52... Kg1 $5 53. Ke2 Kg2 $11) 53. Kd3 $1 {[%emt 0:03:09]} Kg2 {[%emt 0:03:08]} 54. Ke3 {[%emt 0:00:08]} Kf1 {[%emt 0:03:04]} (54... g4 $5 55. Ke2 Kg1 $11) 55. Kf3 $1 {[%emt 0:00:06]} Kg1 {[%emt 0:01:27]} 56. Ke2 $1 {[%emt 0:01:07]} Kh2 {[%emt 0:00:52]} 57. Kd3 {[%emt 0:00:34]} Kg1 {[%emt 0:01:53]} (57... Kg2 $5 58. Ke3 Kf1 $11) 58. Ke2 $1 {[%emt 0:00:29]} Kh1 {[%emt 0:00:44]} 59. Kd2 $1 {[%emt 0:00:57]} Kg1 {[%emt 0:01:00]} (59... Kh2 $5) 60. Ke2 $1 {[%emt 0:00:31]} Kg2 {[%emt 0:00:14]} 61. Ke3 {[%emt 0:00:34]} Kf1 {[%emt 0:00:16]} (61... Kg1 $5 62. Ke2 $11) 62. Kf3 $1 {[%emt 0:00:08]} Ke1 {[%emt 0:00:17]} (62... Kg1 $5 63. Ke2 $11) 63. Ke3 {[%emt 0:00:11]} Kd1 {[%emt 0:00:38]} (63... Kf1 $5 64. Kf3 $11) 64. Kd3 {[%emt 0:00:30]} Ke1 {[%emt 0:01:01]} (64... g4 $5 65. Ke3 Kc2 $11) 65. Ke3 $1 {[%emt 0:00:10]} Kd1 {[%emt 0:00:02]} (65... Kf1 $5 66. Kf3 $11) 66. Kd3 {[%emt 0:00:07]} g4 {[%emt 0:00:54]} (66... Ke1 $5 67. Ke3 $11) 67. Ke3 {[%emt 0:00:23]} Kc2 {[%emt 0:00:33]} 68. Ke2 $1 {[%emt 0:00:48]} Kc3 {[%emt 0:00:37]} 69. Ke3 {[%emt 0:00:26]} Kb2 {[%emt 0:00:15]} (69... Kc2 $5) 70. Kd2 {[%emt 0:00:08]} Kb1 {[%emt 0:00:04]} (70... Kxa2 $5 71. Kc2 Ka1 $11) 71. Kd1 {[%emt 0:00:21]} Kxa2 {[%emt 0:00:23]} (71... Kb2 $5) 72. Kc2 {[%emt 0:00:06]} Ka1 {[%emt 0:00:02]} 73. Kc1 $1 {[%emt 0:00:07]} Ka2 {[%emt 0:00:04]} (73... a2 $5) 74. Kc2 {[%emt 0:00:04]} Ka1 {[%emt 0:00:03]} 75. Kc1 $1 {[%emt 0:00:06]} 1/2-1/2

[Event "44th Chess Olympiad Open 2022"]
[Site "Chennai"]
[Date "2022.08.09"]
[Round "11.10"]
[White "Banikas, Hristos"]
[Black "Cornette, Matthieu"]
[Result "1/2-1/2"]
[ECO "E16"]
[WhiteElo "2598"]
[BlackElo "2551"]
[Annotator "TA"]
[PlyCount "118"]
[EventDate "2022.07.29"]
[EventType "team-tourn"]
[EventCountry "IND"]
[SourceTitle "playchess.com"]
[Source "ChessBase"]
[SourceQuality "1"]
[WhiteTeam "Greece"]
[BlackTeam "France"]
[WhiteTeamCountry "GRE"]
[BlackTeamCountry "FRA"]
[TimeControl "40/5400+30:1800+30"]

{[%evp 13,118,7,9,17,20,16,11,15,22,10,31,29,34,0,0,-6,10,11,25,0,18,0,23,18,20,14,27,0,10,0,0,0,22,0,0,0,14,10,14,12,15,3,18,14,64,74,102,60,151,143,215,27,81,89,89,66,66,74,74,46,45,39,41,6,6,6,11,0,0,0,0,0,0,0,0,0,0,0,0,0,0,0,0,0,0,0,0,0,0,0,0,0,0,0,0,0,0,0,0,0,0,0,0,0,0,4,20]} 1. d4 {[%emt 0:00:03]} Nf6 {[%emt 0:00:17]} 2. c4 {[%emt 0:00:06]} e6 {[%emt 0:00:02]} 3. g3 {[%emt 0:00:06]} d5 {[%emt 0:00:30]} 4. Bg2 {[%emt 0:00:06]} Bb4+ {[%emt 0:00:30]} 5. Nd2 {[%emt 0:03:56]} O-O {[%emt 0:00:45]} 6. Ngf3 {[%emt 0:00:05]} b6 {[%emt 0:00:33]} 7. O-O {[%emt 0:00:10]} Bb7 {[%emt 0:00:06]} 8. b3 {[%emt 0:00:15] E16: Queen's Indian: 4 g3 Bb7 5 Bg2 Bb4+.} Re8 {[%emt 0:00:44]} 9. Bb2 {[%emt 0:00:14] Prevents Bc3.} a5 {[%emt 0:00:24][%cal Ba7a5,Ba5a4][%mdl 32]} 10. Rc1 {[%emt 0:05:16]} a4 {[%emt 0:00:40]} 11. a3 {[%emt 0:01:08]} Bxd2 {[%emt 0:00:16]} 12. Nxd2 {[%emt 0:01:00]} axb3 {[%emt 0:00:04] [#]} 13. cxd5 $146 {[%emt 0:03:57]} ({Predecessor:} 13. Qxb3 Nbd7 14. Rfd1 Ra7 15. Qc2 Ba8 16. cxd5 exd5 17. e3 Qe7 18. a4 h6 19. Ra1 {½-½ (40) Dronov,A (2675)-Langeveld,R (2674) ICCF email 2019}) 13... exd5 {[%emt 0:01:13]} 14. Re1 {[%emt 0:00:08]} Nbd7 {[%emt 0:01:31]} 15. Qxb3 {[%emt 0:01:38]} Ra7 {[%emt 0:00:16]} 16. Rc2 {[%emt 0:06:36]} Ba8 {[%emt 0:07:32]} 17. Nb1 {[%emt 0:05:50]} Ne4 {[%emt 0:07:46]} 18. Nc3 {[%emt 0:04:24]} Nxc3 {[%emt 0:00:56]} 19. Bxc3 {[%emt 0:00:11]} Nf6 {[%emt 0:06:20]} 20. Bb4 {[%emt 0:04:09]} Bb7 {[%emt 0:03:57][%cal Ba8b7,Bb7c8,Bc8f5][%mdl 32]} 21. Qf3 {[%emt 0:06:56]} Bc8 {[%emt 0:14:38]} 22. Qf4 {[%emt 0:03:55]} Nh5 {[%emt 0:04:21]} 23. Qf3 {[%emt 0:01:23]} Nf6 {[%emt 0:00:03]} 24. Qf4 {[%emt 0:00:08]} Nh5 {[%emt 0:00:14]} 25. Qd2 {[%emt 0:06:26]} Bf5 {[%emt 0:02:29]} 26. Rc3 {[%emt 0:00:04]} Nf6 {[%emt 0:05:04]} 27. f3 {[%emt 0:00:56]} h6 {[%emt 0:04:25]} 28. Rec1 {[%emt 0:00:54]} Qd7 {[%emt 0:01:27]} (28... Bd7 $11) 29. g4 $14 {[%emt 0:01:51]} Bg6 {[%emt 0:08:51]} 30. Kf2 {[%emt 0:02:53]} Nh7 {[%emt 0:05:38] [#]} (30... Re6 $14) 31. Qf4 $1 $16 {[%emt 0:01:13][%cal Rc3c7]} Qb5 {[%emt 0:02:14]} (31... Rc8 $16) 32. Re3 $2 {[%emt 0:01:18]} ({Don't do} 32. Rxc7 $6 Qxe2+ 33. Kg3 Rxc7 34. Qxc7 Nf6 $14) (32. Bf1 $18) 32... Rxe3 {[%emt 0:01:48]} (32... Ng5 $1 $11) 33. Qxe3 {[%emt 0:01:55] And now Qe7 would win.} Qd7 {[%emt 0:03:54]} 34. Qe7 {[%emt 0:06:32] Prevents Nf8. White is more active.} Qxe7 {[%emt 0:04:11]} 35. Bxe7 {[%emt 0:01:29]} Ng5 {[%emt 0:00:23]} 36. Rc6 {[%emt 0:02:46]} Ne6 {[%emt 0:01:14]} 37. e3 {[%emt 0:00:06]} Bd3 {[%emt 0:01:30]} 38. Bf1 {[%emt 0:02:24]} Bxf1 {[%emt 0:00:40] The position is equal.} 39. Kxf1 $11 {[%emt 0:00:08][%mdl 4096] Endgame KRB-KRN} Ra8 {[%emt 0:02:13]} 40. f4 {[%emt 0:09:29]} Re8 {[%emt 0:00:26]} 41. Bh4 {[%emt 0:34:58]} g5 {[%emt 0:12:49]} 42. fxg5 {[%emt 0:00:00]} hxg5 {[%emt 0:00:16]} 43. Bg3 {[%emt 0:00:00]} Ra8 {[%emt 0:00:46]} 44. Kf2 {[%emt 0:00:00]} Rxa3 {[%emt 0:02:07]} 45. Bxc7 {[%emt 0:00:00]} Ra2+ {[%emt 0:00:56]} 46. Kf3 {[%emt 0:00:00]} Nxc7 {[%emt 0:04:52]} 47. Rxc7 {[%emt 0:00:00] KR-KR} Kg7 {[%emt 0:03:32]} 48. Rd7 {[%emt 0:00:00]} Ra5 {[%emt 0:00:03]} 49. Kg3 {[%emt 0:00:00]} Rb5 {[%emt 0:00:48]} 50. h4 {[%emt 0:00:00]} gxh4+ {[%emt 0:01:02]} 51. Kxh4 {[%emt 0:00:00]} Kf6 {[%emt 0:01:15]} 52. Kg3 {[%emt 0:00:00]} Ke6 {[%emt 0:00:04]} 53. Rc7 {[%emt 0:00:00]} Rb1 {[%emt 0:00:20]} 54. Rc6+ {[%emt 0:00:00]} Kd7 {[%emt 0:02:07]} 55. Rf6 {[%emt 0:00:00]} Ke7 {[%emt 0:00:05]} 56. g5 {[%emt 0:00:00]} Rg1+ {[%emt 0:00:43]} 57. Kf4 {[%emt 0:00:00]} Rf1+ {[%emt 0:00:03]} ({But not} 57... b5 58. Rb6 $16) 58. Ke5 {[%emt 0:00:00]} Rg1 {[%emt 0:00:04]} 59. Rxb6 {[%emt 0:00:00] [#] Threatens to win with Rb7+.} Rxg5+ {[%emt 0:00:05] Weighted Error Value: White=0.14 (very precise) /Black=0.08 (flawless)} 1/2-1/2

[Event "44th Chess Olympiad Open 2022"]
[Site "Chennai"]
[Date "2022.08.09"]
[Round "11.11"]
[White "Sethuraman, S.P."]
[Black "Suleymenov, Alisher"]
[Result "1/2-1/2"]
[ECO "B31"]
[WhiteElo "2623"]
[BlackElo "2467"]
[Annotator "TA"]
[PlyCount "69"]
[EventDate "2022.07.29"]
[EventType "team-tourn"]
[EventCountry "IND"]
[SourceTitle "playchess.com"]
[Source "ChessBase"]
[SourceQuality "1"]
[WhiteTeam "India"]
[BlackTeam "Kazakhstan"]
[WhiteTeamCountry "IND"]
[BlackTeamCountry "KAZ"]
[TimeControl "40/5400+30:1800+30"]

{[%evp 17,69,7,8,8,0,0,0,0,0,0,19,10,20,26,10,21,22,11,62,35,58,43,58,42,59,67,226,195,223,197,291,296,424,403,574,564,597,594,627,592,619,628,592,0,0,0,0,0,0,0,0,0,0,0]} 1. e4 {[%emt 0:00:17]} c5 {[%emt 0:00:05]} 2. Nf3 {[%emt 0:00:06]} Nc6 {[%emt 0:00:04]} 3. Bb5 {[%emt 0:00:05]} g6 {[%emt 0:00:04]} 4. Bxc6 {[%emt 0:00:05]} bxc6 {[%emt 0:00:08]} 5. O-O {[%emt 0:00:06]} Bg7 {[%emt 0:00:05]} 6. Re1 {[%emt 0:00:13]} Nh6 {[%emt 0:00:58]} 7. c3 {[%emt 0:00:05]} O-O {[%emt 0:00:10]} 8. d4 {[%emt 0:00:22]} cxd4 {[%emt 0:00:38]} 9. cxd4 {[%emt 0:00:05]} d5 {[%emt 0:00:13]} 10. e5 {[%emt 0:00:04] B31: Sicilian: 2...Nc6 3 Bb5 g6.} f6 {[%emt 0:00:15]} 11. Qc2 {[%emt 0:00:05] Recently 11.h3 got a lot of attention.} Qb6 {[%emt 0:16:37]} 12. Bxh6 {[%emt 0:00:25]} Bxh6 {[%emt 0:00:08]} 13. e6 {[%emt 0:00:02]} Rb8 {[%emt 0:13:31]} 14. b3 {[%emt 0:00:58]} Qc7 {[%emt 0:02:54]} 15. Nc3 {[%emt 0:00:21][%cal Oc3d5]} Qd6 $1 {[%emt 0:00:22]} 16. Qe2 {[%emt 0:00:05]} c5 $1 {[%emt 0:02:30]} 17. Rad1 {[%emt 0:12:31] With the idea dxc5.} Bb7 {[%emt 0:07:17] [#]} (17... Ba6 $11 18. dxc5 Bxe2 19. cxd6 Bxd1 20. Rxd1 exd6) 18. h4 $146 {[%emt 0:01:56][%cal Bh2h4,Bh4h5][%mdl 32] White is more active.} (18. Nb5 $5 {[%cal Rb5d6]} Qb6 19. dxc5 Qxc5 20. Nbd4 $15) ({Predecessor:} 18. Nb5 Qb6 19. dxc5 Qxc5 20. Nbd4 Rbc8 21. h4 Qa3 22. h5 Ba6 23. Nb5 Qc5 24. a4 {½-½ (94) Van Foreest,J (2621)-Kamsky,G (2685) Douglas 2019}) 18... Kh8 {[%emt 0:10:11]} 19. Nb5 {[%emt 0:06:26]} Qb6 {[%emt 0:01:48][%cal Oc5c4]} 20. dxc5 {[%emt 0:00:07]} Qxc5 {[%emt 0:00:06]} 21. Nbd4 {[%emt 0:00:03][%cal Oh4h5]} Qd6 $2 {[%emt 0:14:17] [#]} ({Better is} 21... Bf4 $14) 22. h5 $1 $18 {[%emt 0:02:50]} Ba6 {[%emt 0:03:01]} (22... gxh5 $2 23. Nf5 Qf4 24. Nxe7 $18) 23. Qb2 {[%emt 0:07:18]} Rg8 {[%emt 0:01:11]} (23... gxh5 $2 24. Nf5 Qf4 25. Nxe7 $18) (23... Bb5 {was called for.} 24. Nxb5 Rxb5) 24. hxg6 {[%emt 0:04:17]} Qf4 {[%emt 0:09:28] Inhibits Nf5.} (24... Rxg6 $2 25. Nh4 Qc5 26. Nxg6+ hxg6 27. g3) (24... hxg6 $142 25. g3 Rg7) 25. Qa3 {[%emt 0:04:47][%csl LRa6,LRe7]} Bb5 {[%emt 0:00:03]} (25... Bb7 {keeps fighting.} 26. Qxe7 Rxg6) 26. Nxb5 {[%emt 0:02:29] aiming for Rd4. Pair of Knights!} Rxg6 {[%emt 0:01:50]} 27. Nbd4 {[%emt 0:02:01]} Rbg8 {[%emt 0:01:12]} 28. Kf1 {[%emt 0:02:01]} Rxg2 {[%emt 0:00:25] White must now prevent ...Qg4.} 29. Qxe7 {[%emt 0:02:15] Strongly threatening Qf7.} Qg4 {[%emt 0:07:58][%cal Og2f2] ( -> ...Rxf2+!)} 30. Re3 $2 {[%emt 0:18:27]} Bxe3 $11 {[%emt 0:01:25] The position is equal.} 31. Qxf6+ {[%emt 0:00:04]} ({Don't go for} 31. fxe3 $2 {[#]} Rg1+ $1 {[%mdl 512]} 32. Ke2 Qg2+ 33. Kd3 Rxd1+ $19) 31... Rg7 {[%emt 0:00:08]} 32. Qf8+ {[%emt 0:26:09]} Rg8 {[%emt 0:00:01]} 33. Qf6+ {[%emt 0:00:08]} Rg7 {[%emt 0:00:02]} 34. Qf8+ {[%emt 0:01:02]} Rg8 {[%emt 0:00:07]} 35. Qf6+ {[%emt 0:00:04] Weighted Error Value: White=0.27 (precise) /Black=0.33} 1/2-1/2